bitfinex/quotes_SOLUSD_20250531
["timestamp","ask_amount","ask_price","bid_price","bid_amount"]
[1748681113095,18.42525821,154.64,154.6,6.4683053]
[1748681113400,18.42525821,154.64,154.53,1.5852]
[1748681113401,26.0,154.6,154.53,37.07490707]
[1748681113600,18.42525821,154.58,154.53,24.89649356]
[1748681115096,24.89458968,154.58,154.53,24.89649356]
[1748681115795,24.89458968,154.58,154.53,18.42525821]
[1748681116101,18.42525821,154.56,154.51,140.42647607]
[1748681116311,18.42525821,154.57,154.52,18.42525821]
[1748681116818,24.89498666,154.57,154.52,18.42525821]
[1748681117021,57.8844,154.63,154.56,18.42525821]
[1748681117205,18.42525821,154.61,154.56,18.42525821]
[1748681117514,19.99535821,154.63,154.58,18.42525821]
[1748681117715,18.42525821,154.64,154.59,18.42525821]
[1748681117920,18.42525821,154.64,154.6,18.42525821]
[1748681118297,18.42525821,154.64,154.59,18.42525821]
[1748681118918,24.89195018,154.64,154.59,18.42525821]
[1748681119327,18.42525821,154.63,154.59,18.42525821]
[1748681120024,18.42525821,154.63,154.59,24.89377296]
[1748681120216,18.42525821,154.63,154.59,6.46851475]
[1748681120616,18.42525821,154.63,154.58,18.42525821]
[1748681120925,18.42525821,154.62,154.57,43.54445009]
[1748681122128,24.89280176,154.62,154.57,24.89480123]
[1748681123722,24.89280176,154.62,154.57,18.42525821]
[1748681125007,18.42525821,154.6,154.56,10.18]
[1748681125627,18.42525821,154.58,154.53,18.42525821]
[1748681125810,24.89443423,154.58,154.53,24.89647996]
[1748681127125,18.42525821,154.58,154.53,24.89647996]
[1748681127829,18.42525821,154.59,154.54,37.07490707]
[1748681128023,18.42525821,154.6,154.55,18.42525821]
[1748681129121,18.42525821,154.6,154.55,24.89527483]
[1748681129322,58.00525821,154.61,154.56,18.42525821]
[1748681131335,58.00525821,154.61,154.56,24.8950504]
[1748681131910,58.00525821,154.61,154.56,6.46979219]
[1748681132111,18.42525821,154.6,154.56,6.46979219]
[1748681132619,18.42525821,154.61,154.56,24.8950504]
[1748681134114,6.46454198,154.69,154.6,18.42525821]
[1748681134323,18.42525821,154.67,154.62,18.42525821]
[1748681134529,26.0,154.68,154.62,18.42525821]
[1748681134933,18.42525821,154.67,154.62,18.42525821]
[1748681135422,18.42525821,154.67,154.63,6.46705037]
[1748681135746,18.42525821,154.67,154.62,24.8926023]
[1748681136335,24.89065431,154.67,154.62,24.8926023]
[1748681136952,18.42525821,154.67,154.62,24.8926023]
[1748681137944,18.42525821,154.67,154.63,18.42525821]
[1748681139054,24.89069722,154.67,154.62,24.8926023]
[1748681139219,18.42525821,154.65,154.6,18.42525821]
[1748681139417,6.46543901,154.67,154.6,18.42525821]
[1748681139418,18.42525821,154.64,154.6,87.8]
[1748681139617,18.42525821,154.62,154.6,87.8]
[1748681139844,18.42525821,154.63,154.6,87.8]
[1748681141738,18.42525821,154.62,154.6,87.8]
[1748681141937,18.42525821,154.61,154.57,10.24]
[1748681142143,18.42525821,154.59,154.54,124.87490707]
[1748681143039,18.42525821,154.59,154.55,6.47024272]
[1748681143233,18.42525821,154.6,154.55,24.89550093]
[1748681144239,58.02525821,154.61,154.56,18.42525821]
[1748681144755,18.42525821,154.62,154.57,18.42525821]
[1748681145060,84.00525821,154.65,154.6,24.89319344]
[1748681146156,44.42525821,154.65,154.6,24.89319344]
[1748681146377,18.42525821,154.65,154.6,24.89319344]
[1748681146734,6.46412411,154.7,154.64,18.42525821]
[1748681146938,58.04525821,154.7,154.65,18.42525821]
[1748681147239,26.0,154.69,154.65,24.89112476]
[1748681147633,58.04525821,154.7,154.65,24.89112476]
[1748681147942,70.72815482,154.71,154.66,18.42525821]
[1748681148127,26.0,154.7,154.66,18.42525821]
[1748681148543,44.42525821,154.7,154.66,18.42525821]
[1748681148954,44.42525821,154.7,154.64,6.46651145]
[1748681149150,18.42525821,154.69,154.64,24.89176966]
[1748681149669,18.42525821,154.69,154.63,35.13218429]
[1748681149670,18.42525821,154.68,154.63,35.13218429]
[1748681151344,24.8902606,154.68,154.63,35.13218429]
[1748681151558,18.42525821,154.68,154.63,35.13218429]
[1748681152442,24.89025733,154.68,154.63,35.13218429]
[1748681153839,24.89025733,154.68,154.63,28.66525821]
[1748681154051,24.89025733,154.68,154.63,35.13225115]
[1748681154236,24.89025733,154.68,154.63,28.66525821]
[1748681155659,18.42525821,154.66,154.63,10.24]
[1748681155962,18.42525821,154.66,154.62,6.4673227]
[1748681157282,18.42525821,154.66,154.61,112.69299241]
[1748681159394,18.42525821,154.67,154.62,18.42525821]
[1748681159769,50.89038131,154.68,154.63,18.42525821]
[1748681160287,26.0,154.68,154.65,18.42525821]
[1748681160670,18.42525821,154.71,154.66,18.42525821]
[1748681160867,44.42525821,154.71,154.66,18.42525821]
[1748681162292,44.42525821,154.71,154.67,6.4653779]
[1748681164459,26.0,154.71,154.67,24.89063611]
[1748681164663,26.0,154.71,154.67,112.69063611]
[1748681165082,44.42525821,154.71,154.67,94.2653779]
[1748681166979,26.0,154.71,154.67,112.69063611]
[1748681167183,26.0,154.71,154.68,18.42525821]
[1748681167988,26.0,154.71,154.68,24.88990032]
[1748681168474,26.0,154.71,154.67,24.8904635]
[1748681168682,26.0,154.71,154.68,18.42525821]
[1748681169264,26.0,154.71,154.69,18.42525821]
[1748681169682,18.42525821,154.74,154.69,18.42525821]
[1748681169884,44.42525821,154.74,154.69,18.42525821]
[1748681170094,44.42525821,154.74,154.69,24.88957609]
[1748681171690,18.42525821,154.7,154.67,87.8]
[1748681171862,44.42525821,154.71,154.67,87.8]
[1748681172275,26.0,154.71,154.67,106.22525821]
[1748681173573,32.46379888,154.71,154.67,18.42525821]
[1748681176969,18.42525821,154.7,154.66,87.8]
[1748681177307,50.88905709,154.71,154.66,106.22525821]
[1748681177784,32.46379888,154.71,154.67,18.42525821]
[1748681179289,26.0,154.71,154.68,18.42525821]
[1748681179589,26.0,154.71,154.68,106.22525821]
[1748681179788,26.0,154.71,154.68,87.8]
[1748681180295,32.46399023,154.71,154.68,87.8]
[1748681180471,50.88924844,154.71,154.68,87.8]
[1748681180666,26.0,154.71,154.68,87.8]
[1748681184098,18.42525821,154.73,154.68,112.68992399]
[1748681184280,24.88814037,154.73,154.68,112.68992399]
[1748681185604,24.88814037,154.73,154.68,106.22525821]
[1748681185982,18.42525821,154.72,154.68,87.8]
[1748681186699,50.88786115,154.74,154.69,18.42525821]
[1748681188780,50.88786115,154.74,154.69,24.88974974]
[1748681189489,44.42525821,154.74,154.69,24.88974974]
[1748681191500,44.42525821,154.74,154.69,112.68974974]
[1748681191694,26.0,154.74,154.7,18.42525821]
[1748681191893,1.5973,154.76,154.71,18.64964886]
[1748681192095,18.42525821,154.77,154.73,18.42525821]
[1748681192304,44.42525821,154.77,154.73,18.42525821]
[1748681192693,26.0,154.77,154.73,18.42525821]
[1748681193008,53.08116633,154.8,154.74,18.42525821]
[1748681193009,19.71692641,154.8,154.74,18.42525821]
[1748681193189,18.42525821,154.79,154.75,18.42525821]
[1748681193387,18.42525821,154.78,154.74,24.88755279]
[1748681194415,18.42525821,154.78,154.74,18.42525821]
[1748681195490,18.42525821,154.78,154.73,112.6880643]
[1748681197910,32.46059239,154.79,154.73,112.6880643]
[1748681198112,18.42525821,154.78,154.74,18.42525821]
[1748681200228,18.42525821,154.78,154.73,112.6880643]
[1748681202016,18.42525821,154.78,154.74,18.42525821]
[1748681202204,13.25684319,154.8,154.75,37.07490707]
[1748681202401,31.6821014,154.8,154.75,37.07490707]
[1748681203397,38.14207668,154.8,154.75,37.07490707]
[1748681203926,18.42525821,154.79,154.75,18.42525821]
[1748681204128,18.42525821,154.78,154.74,106.22525821]
[1748681204532,18.42525821,154.78,154.74,112.68760448]
[1748681206195,18.42525821,154.79,154.74,112.68760448]
[1748681206813,18.42525821,154.79,154.75,18.42525821]
[1748681207532,18.42525821,154.79,154.75,37.07490707]
[1748681208401,18.42525821,154.79,154.75,43.53694055]
[1748681210009,26.0,154.81,154.77,18.42525821]
[1748681210212,26.0,154.81,154.77,112.68612937]
[1748681210949,16.69792222,154.85,154.8,18.42525821]
[1748681211106,61.22532453,154.86,154.8,18.42525821]
[1748681211107,28.22292996,154.86,154.8,18.42525821]
[1748681211422,18.42525821,154.84,154.8,18.42525821]
[1748681212225,18.42525821,154.84,154.8,24.8852001]
[1748681212404,44.42525821,154.85,154.8,24.8852001]
[1748681212624,40.19058274,154.86,154.81,37.07490707]
[1748681212938,30.05309182,154.86,154.81,37.07490707]
[1748681213119,36.510604,154.86,154.81,37.07490707]
[1748681213635,18.42525821,154.85,154.81,37.07490707]
[1748681214530,24.88334335,154.85,154.8,18.42525821]
[1748681215035,18.42525821,154.84,154.8,18.42525821]
[1748681215740,18.42525821,154.84,154.8,24.88505147]
[1748681216218,24.88334335,154.85,154.8,24.88505147]
[1748681216621,24.88334335,154.85,154.81,18.42525821]
[1748681217312,24.88334335,154.85,154.8,24.88505147]
[1748681217746,18.42525821,154.84,154.8,18.42525821]
[1748681217924,18.42525821,154.84,154.8,106.22525821]
[1748681218510,18.42525821,154.84,154.8,112.68518332]
[1748681219928,24.88362047,154.84,154.8,106.22525821]
[1748681220314,44.42525821,154.81,154.77,87.8]
[1748681220513,18.42525821,154.79,154.77,87.8]
[1748681220711,18.42525821,154.8,154.77,87.8]
[1748681221732,26.0,154.81,154.77,112.68640202]
[1748681222438,44.42525821,154.81,154.77,94.26114381]
[1748681222653,50.88484074,154.81,154.77,87.8]
[1748681223934,18.42525821,154.8,154.77,87.8]
[1748681225339,50.88484074,154.81,154.77,87.8]
[1748681225515,26.0,154.81,154.77,94.26108637]
[1748681225714,24.88451828,154.82,154.77,112.68634458]
[1748681225949,18.42525821,154.81,154.77,94.26108637]
[1748681226142,18.42525821,154.81,154.77,87.8]
[1748681226347,18.42525821,154.8,154.77,87.8]
[1748681227336,18.42525821,154.8,154.77,94.26097564]
[1748681227657,18.42525821,154.81,154.77,94.26097564]
[1748681228732,18.42525821,154.8,154.77,87.8]
[1748681230319,24.88523088,154.8,154.77,87.8]
[1748681231152,18.42525821,154.8,154.77,87.8]
[1748681232955,18.42525821,154.81,154.77,87.8]
[1748681236251,24.88488844,154.81,154.77,87.8]
[1748681236429,18.42525821,154.8,154.77,87.8]
[1748681239465,18.42525821,154.81,154.77,94.26109402]
[1748681241274,44.42525821,154.84,154.79,18.42525821]
[1748681241556,26.0,154.84,154.8,24.88520653]
[1748681241760,18.42525821,154.85,154.8,112.68520653]
[1748681241936,18.42525821,154.85,154.81,18.64964886]
[1748681242142,18.42525821,154.87,154.82,18.42525821]
[1748681242345,44.42525821,154.87,154.82,18.42525821]
[1748681242539,18.42525821,154.87,154.83,18.42525821]
[1748681243267,26.0,154.86,154.83,18.42525821]
[1748681243563,18.42525821,154.9,154.85,18.42525821]
[1748681244370,26.0,154.89,154.85,18.42525821]
[1748681245148,26.0,154.89,154.86,6.45744543]
[1748681245541,26.0,154.89,154.85,24.88301628]
[1748681248557,26.0,154.88,154.85,24.88301628]
[1748681248750,26.0,154.89,154.85,24.88301628]
[1748681248954,26.0,154.88,154.85,24.88301628]
[1748681249570,44.42525821,154.88,154.84,97.98]
[1748681249753,18.42525821,154.86,154.84,87.8]
[1748681249962,18.42525821,154.86,154.81,152.10463862]
[1748681250364,18.42525821,154.86,154.81,112.68463862]
[1748681251564,18.42525821,154.86,154.82,18.42525821]
[1748681252355,26.0,154.87,154.82,24.88433516]
[1748681252356,32.4570725,154.87,154.82,24.88433516]
[1748681252565,26.0,154.89,154.84,18.42525821]
[1748681252756,44.42525821,154.89,154.84,18.42525821]
[1748681253752,44.42525821,154.89,154.84,24.88320972]
[1748681253954,26.0,154.89,154.85,18.42525821]
[1748681256073,18.42525821,154.9,154.86,18.42525821]
[1748681256281,18.42525821,154.9,154.86,106.22525821]
[1748681256573,18.42525821,154.91,154.86,106.22525821]
[1748681256775,6.45520765,154.92,154.86,106.22525821]
[1748681256776,18.42525821,154.92,154.87,37.07490707]
[1748681257697,6.1924,155.01,154.88,7.8355]
[1748681257983,1.6615,155.05,154.92,26.0]
[1748681258194,6.1924,155.06,154.96,26.0]
[1748681258478,18.42525821,155.05,155.0,18.42525821]
[1748681258676,0.229512,155.08,155.01,18.42525821]
[1748681258875,18.42525821,155.07,155.02,18.42525821]
[1748681259677,18.65477021,155.08,155.03,18.42525821]
[1748681260267,18.65477021,155.08,155.02,6.45078054]
[1748681260562,18.65477021,155.08,155.03,18.42525821]
[1748681260883,0.229512,155.08,155.03,18.42525821]
[1748681261083,18.65477021,155.08,155.03,18.42525821]
[1748681261281,18.65477021,155.08,155.02,6.45078054]
[1748681261579,18.65477021,155.08,155.03,18.42525821]
[1748681262169,18.65477021,155.08,155.03,24.87534458]
[1748681262885,18.42525821,155.07,155.02,6.45072343]
[1748681263182,18.42525821,155.07,155.02,24.87598164]
[1748681263359,18.42525821,155.07,155.02,6.45072343]
[1748681263559,18.42525821,155.07,155.02,24.87598164]
[1748681264175,18.42525821,155.07,154.99,2.30027498]
[1748681264176,18.42525821,155.03,154.99,2.30027498]
[1748681265065,18.42525821,155.02,154.99,8.7521343]
[1748681265266,18.42525821,155.02,154.99,2.30027498]
[1748681267862,18.42525821,155.01,154.99,2.30027498]
[1748681268293,19.99295821,155.0,154.99,2.30027498]
[1748681268463,18.42525821,154.97,154.9,6.45577792]
[1748681268662,18.42525821,154.94,154.9,87.8]
[1748681268870,40.76,154.98,154.9,18.42525821]
[1748681268871,18.42525821,154.95,154.9,18.42525821]
[1748681269289,18.42525821,154.96,154.92,18.42525821]
[1748681269476,51.54,154.98,154.92,18.42525821]
[1748681269801,18.42525821,154.97,154.92,18.42525821]
[1748681270510,51.54,154.98,154.93,24.87978606]
[1748681270674,18.42525821,154.98,154.94,18.42525821]
[1748681270875,18.42525821,154.98,154.93,24.87978606]
[1748681271610,23.55118753,155.02,154.95,18.42525821]
[1748681271771,18.42525821,155.01,154.96,18.42525821]
[1748681272109,18.42525821,154.98,154.93,24.87978606]
[1748681273498,18.42525821,154.99,154.94,43.52863833]
[1748681274203,18.42525821,154.99,154.94,25.10338012]
[1748681274386,18.42525821,154.99,154.94,43.52863833]
[1748681274589,18.42525821,154.98,154.93,18.42525821]
[1748681276403,18.42525821,154.98,154.93,24.87964202]
[1748681276579,6.4521828,154.99,154.94,18.42525821]
[1748681276780,24.87744101,154.99,154.94,18.42525821]
[1748681277186,24.87744101,154.99,154.94,106.22525821]
[1748681277997,18.42525821,154.97,154.94,87.8]
[1748681278398,6.45119669,155.01,154.94,87.8]
[1748681278580,18.42525821,154.98,154.94,106.22525821]
[1748681278783,18.42525821,154.98,154.94,87.8]
[1748681279290,18.42525821,154.98,154.94,94.25409558]
[1748681280390,18.42525821,154.98,154.94,87.8]
[1748681281007,18.42525821,154.98,154.94,94.25396811]
[1748681281583,18.42525821,154.99,154.94,112.67922632]
[1748681282106,6.45130593,155.01,154.95,37.07490707]
[1748681282107,18.42525821,155.0,154.95,37.07490707]
[1748681284096,18.42525821,155.0,154.96,6.45327826]
[1748681285731,8.06854669,155.04,154.97,18.42525821]
[1748681286028,18.42525821,155.02,154.97,18.42525821]
[1748681286616,18.42525821,155.02,154.97,106.22525821]
[1748681287915,18.42525821,155.02,154.98,6.45244547]
[1748681288118,18.42525821,155.04,154.99,18.42525821]
[1748681288295,18.42525821,155.04,154.99,106.22525821]
[1748681289018,18.42525821,155.03,154.99,87.8]
[1748681289408,18.42525821,155.03,154.99,106.22525821]
[1748681289611,12.87708383,155.06,154.99,106.22525821]
[1748681289814,1.6099,155.07,155.01,24.8764549]
[1748681290002,18.42525821,155.06,155.01,24.8764549]
[1748681290213,1.6099,155.07,155.01,24.8764549]
[1748681290404,18.42525821,155.06,155.01,24.8764549]
[1748681290598,18.42525821,155.05,155.01,6.45119669]
[1748681292805,51.709512,155.08,155.03,18.42525821]
[1748681292806,18.65477021,155.08,155.03,18.42525821]
[1748681293415,18.42525821,155.07,155.02,37.07490707]
[1748681293835,0.229512,155.08,155.04,18.42525821]
[1748681294044,18.65477021,155.08,155.03,18.42525821]
[1748681294905,18.65477021,155.08,155.03,24.87562265]
[1748681295104,0.229512,155.08,155.04,18.42525821]
[1748681296536,0.229512,155.08,155.04,24.87486222]
[1748681296837,18.65477021,155.08,155.04,6.44960401]
[1748681297699,18.65477021,155.08,155.04,94.24960401]
[1748681297905,18.65477021,155.08,155.04,112.67486222]
[1748681298610,18.65477021,155.08,155.04,94.24960401]
[1748681298806,0.229512,155.08,155.04,112.67486222]
[1748681299124,0.229512,155.08,155.05,18.64964886]
[1748681299441,0.229512,155.08,155.06,18.42525821]
[1748681299950,0.229512,155.08,155.06,24.87437468]
[1748681300120,0.229512,155.08,155.07,18.42525821]
[1748681300323,0.229512,155.08,155.07,37.07490707]
[1748681300920,0.229512,155.08,155.07,18.64964886]
[1748681301419,0.229512,155.08,155.07,37.07490707]
[1748681301751,0.229512,155.08,155.07,63.07490707]
[1748681301954,0.229512,155.08,155.07,69.52360765]
[1748681302155,0.229512,155.08,155.07,69.80793079]
[1748681302662,0.229512,155.08,155.07,43.80793079]
[1748681302937,141.83003334,155.19,155.11,18.64964886]
[1748681302938,1.5862,155.19,155.11,18.64964886]
[1748681303152,18.42525821,155.2,155.15,18.42525821]
[1748681303655,18.42525821,155.19,155.14,18.42525821]
[1748681304026,18.42525821,155.19,155.15,6.44537544]
[1748681304335,18.42525821,155.2,155.16,18.64964886]
[1748681304529,18.42525821,155.2,155.16,37.07490707]
[1748681305223,18.42525821,155.2,155.16,25.09446615]
[1748681305422,7.7341,155.23,155.15,18.64964886]
[1748681305423,18.42525821,155.19,155.15,18.64964886]
[1748681305616,18.42525821,155.19,155.14,24.8710491]
[1748681305822,18.42525821,155.18,155.14,6.44579089]
[1748681306224,7.7341,155.23,155.14,6.44579089]
[1748681306447,18.42525821,155.19,155.14,24.8710491]
[1748681307238,18.42525821,155.18,155.14,18.64964886]
[1748681307410,6.44378966,155.19,155.13,32.44611562]
[1748681307411,18.42525821,155.17,155.13,32.44611562]
[1748681307616,18.42525821,155.17,155.13,50.87137383]
[1748681307930,18.42525821,155.18,155.13,50.87137383]
[1748681308126,7.7341,155.23,155.16,18.64964886]
[1748681308127,14.17624729,155.23,155.16,18.64964886]
[1748681308436,18.42525821,155.21,155.16,43.51960427]
[1748681308823,18.42525821,155.2,155.16,25.09434606]
[1748681310040,18.42525821,155.2,155.16,43.51960427]
[1748681310244,6.44254338,155.22,155.16,43.51960427]
[1748681310440,18.42525821,155.2,155.16,43.51960427]
[1748681311331,6.44254338,155.22,155.16,43.51960427]
[1748681311542,18.42525821,155.2,155.16,43.51960427]
[1748681312241,18.42525821,155.2,155.16,25.09434606]
[1748681313541,6.44273969,155.22,155.16,25.09434606]
[1748681313846,18.42525821,155.22,155.18,18.42525821]
[1748681315442,6.44122383,155.25,155.18,24.86915003]
[1748681315627,18.42525821,155.22,155.18,6.44389182]
[1748681316522,18.42525821,155.23,155.19,6.44333553]
[1748681316747,18.42525821,155.22,155.19,6.44333553]
[1748681317742,18.42525821,155.22,155.18,6.44412939]
[1748681317945,6.44122383,155.25,155.16,42.1124001]
[1748681317946,18.42525821,155.19,155.16,26.0]
[1748681318249,18.42525821,155.2,155.17,18.64964886]
[1748681318631,18.42525821,155.19,155.17,18.64964886]
[1748681319031,18.42525821,155.19,155.16,26.0]
[1748681320247,18.42525821,155.17,155.14,18.64964886]
[1748681320936,6.44298352,155.21,155.15,18.42525821]
[1748681321138,18.42525821,155.21,155.17,37.07490707]
[1748681321550,18.42525821,155.21,155.17,18.64964886]
[1748681322131,18.42525821,155.21,155.17,25.09418781]
[1748681322542,6.44205372,155.23,155.17,25.09418781]
[1748681322740,18.42525821,155.21,155.17,25.09418781]
[1748681323252,18.42525821,155.19,155.16,94.24494597]
[1748681323850,6.44205372,155.23,155.16,94.24494597]
[1748681324025,18.42525821,155.2,155.16,94.24494597]
[1748681325045,18.42525821,155.21,155.17,18.64964886]
[1748681326154,18.42525821,155.21,155.17,25.09406343]
[1748681326358,18.42525821,155.2,155.16,106.22525821]
[1748681326548,18.42525821,155.19,155.16,87.8]
[1748681327436,18.42525821,155.19,155.16,18.64964886]
[1748681327962,18.42525821,155.18,155.16,25.0944602]
[1748681328346,18.42525821,155.18,155.16,18.64964886]
[1748681329163,18.42525821,155.17,155.14,10.96]
[1748681329365,18.42525821,155.16,155.12,6.44661105]
[1748681329552,18.42525821,155.15,155.12,6.44661105]
[1748681329739,18.42525821,155.15,155.11,51.09655598]
[1748681330067,18.42525821,155.16,155.11,43.52181419]
[1748681330234,18.42525821,155.16,155.11,69.52181419]
[1748681331759,18.42525821,155.16,155.11,51.09655598]
[1748681331947,18.42525821,155.16,155.11,69.52181419]
[1748681333048,6.4445625,155.17,155.11,69.52181419]
[1748681333049,18.42525821,155.15,155.11,51.09655598]
[1748681333247,6.4445625,155.17,155.11,51.09655598]
[1748681333450,18.42525821,155.15,155.11,69.52181419]
[1748681334570,18.42525821,155.16,155.11,69.52181419]
[1748681335960,6.5989,155.19,155.11,69.52181419]
[1748681335961,18.42525821,155.17,155.13,18.64964886]
[1748681336165,13.04265312,155.19,155.13,18.64964886]
[1748681336366,18.42525821,155.17,155.13,18.64964886]
[1748681336570,18.42525821,155.17,155.12,18.64964886]
[1748681336868,18.42525821,155.17,155.12,37.07490707]
[1748681337167,18.42525821,155.17,155.12,124.87490707]
[1748681337368,18.42525821,155.17,155.13,6.4462064]
[1748681337542,18.42525821,155.18,155.14,18.64964886]
[1748681338567,6.443439,155.2,155.15,6.44537544]
[1748681338785,18.42525821,155.18,155.15,6.44537544]
[1748681340049,1.6585,155.21,155.15,6.44537544]
[1748681340244,18.42525821,155.19,155.15,6.44537544]
[1748681341472,18.42525821,155.2,155.16,18.64964886]
[1748681342447,18.42525821,155.2,155.17,6.44454469]
[1748681342747,18.42525821,155.2,155.16,25.09444822]
[1748681342965,18.42525821,155.19,155.16,25.09444822]
[1748681343347,18.42525821,155.2,155.16,25.09444822]
[1748681344355,18.42525821,155.19,155.16,25.09444822]
[1748681344556,18.42525821,155.19,155.15,18.64964886]
[1748681347079,18.42525821,155.19,155.15,25.09465922]
[1748681347458,18.42525821,155.19,155.15,43.51991743]
[1748681347983,18.42525821,155.19,155.15,25.09465922]
[1748681348558,18.42525821,155.17,155.14,10.96]
[1748681348765,18.42525821,155.17,155.14,98.76]
[1748681349074,18.42525821,155.17,155.14,94.24572381]
[1748681349666,18.42525821,155.18,155.14,94.24572381]
[1748681350388,18.42525821,155.17,155.14,87.8]
[1748681351380,18.42525821,155.16,155.14,87.8]
[1748681352478,18.42525821,155.15,155.1,87.8]
[1748681352679,6.6471,155.17,155.1,87.8]
[1748681352680,18.42525821,155.12,155.1,87.8]
[1748681353180,40.44,155.16,155.1,94.24742927]
[1748681353494,18.42525821,155.14,155.1,94.24742927]
[1748681353859,18.42525821,155.13,155.1,94.24742927]
[1748681356784,18.42525821,155.13,155.11,18.64964886]
[1748681357082,18.42525821,155.13,155.11,106.44964886]
[1748681357466,18.42525821,155.13,155.12,6.44662197]
[1748681357886,18.42525821,155.13,155.11,112.89655195]
[1748681358462,18.42525821,155.15,155.11,112.89655195]
[1748681358684,1.6121,155.18,155.11,131.32181016]
[1748681358685,18.42525821,155.16,155.11,131.32181016]
[1748681358862,18.42525821,155.16,155.13,18.64964886]
[1748681360169,18.42525821,155.16,155.14,6.44579089]
[1748681360486,18.42525821,155.16,155.14,94.24579089]
[1748681361166,18.42525821,155.18,155.15,18.64964886]
[1748681361774,18.42525821,155.17,155.15,18.64964886]
[1748681362179,18.42525821,155.17,155.15,25.09478755]
[1748681362669,18.42525821,155.19,155.15,25.09478755]
[1748681363588,18.42525821,155.18,155.15,25.09478755]
[1748681363795,12.62202585,155.21,155.15,25.09478755]
[1748681363796,18.42525821,155.17,155.15,25.09478755]
[1748681365396,18.42525821,155.18,155.15,25.09478755]
[1748681367492,12.62202585,155.21,155.15,25.09478755]
[1748681367687,18.42525821,155.18,155.15,25.09478755]
[1748681368780,18.42525821,155.18,155.15,112.89478755]
[1748681374596,6.179,155.21,155.15,131.32004576]
[1748681374798,18.42525821,155.2,155.17,18.64964886]
[1748681376106,1.5549,155.22,155.18,6.44412939]
[1748681376279,6.0537,155.25,155.19,18.64964886]
[1748681376479,6.0537,155.25,155.19,106.44964886]
[1748681376480,18.42525821,155.23,155.19,106.44964886]
[1748681378014,18.42525821,155.23,155.19,124.87490707]
[1748681378212,18.42525821,155.23,155.2,6.44329896]
[1748681378522,1.6216,155.26,155.2,6.44329896]
[1748681379012,18.42525821,155.23,155.2,6.44329896]
[1748681379199,8.06246716,155.26,155.2,6.44329896]
[1748681379512,18.42525821,155.23,155.2,6.44329896]
[1748681381190,8.06246535,155.26,155.2,94.24329896]
[1748681381700,18.42525821,155.23,155.2,94.24329896]
[1748681382009,18.42525821,155.22,155.2,94.24329896]
[1748681382192,18.42525821,155.23,155.2,94.24329896]
[1748681385425,18.42525821,155.21,155.2,87.8]
[1748681385602,18.42525821,155.21,155.18,0.031433]
[1748681385805,40.22,155.23,155.18,0.031433]
[1748681386004,18.42525821,155.2,155.18,0.031433]
[1748681386307,18.42525821,155.21,155.18,0.031433]
[1748681387788,18.42525821,155.22,155.18,0.031433]
[1748681387990,18.42525821,155.21,155.18,0.031433]
[1748681389487,18.42525821,155.21,155.19,6.44371415]
[1748681390198,40.22,155.23,155.19,6.44371415]
[1748681390415,18.42525821,155.21,155.19,6.44371415]
[1748681392526,18.42525821,155.22,155.19,6.44371415]
[1748681393389,18.42525821,155.24,155.19,24.86897236]
[1748681393709,18.42525821,155.24,155.19,112.66897236]
[1748681394099,18.42525821,155.23,155.19,94.24371415]
[1748681394289,18.42525821,155.22,155.19,94.24371415]
[1748681394490,18.42525821,155.23,155.19,94.24371415]
[1748681395292,18.42525821,155.23,155.2,18.64964886]
[1748681395913,18.42525821,155.23,155.2,106.44964886]
[1748681397312,18.42525821,155.22,155.2,94.24305104]
[1748681403996,18.42525821,155.23,155.2,94.24305104]
[1748681404313,18.42525821,155.21,155.18,0.031433]
[1748681404494,18.42525821,155.19,155.18,0.031433]
[1748681404694,46.1845,155.23,155.18,0.031433]
[1748681404912,18.42525821,155.22,155.18,25.12521125]
[1748681405095,18.42525821,155.22,155.18,112.92521125]
[1748681405710,18.42525821,155.21,155.18,112.92521125]
[1748681406306,18.42525821,155.22,155.18,112.92521125]
[1748681407126,18.42525821,155.22,155.18,112.92516499]
[1748681407321,18.42525821,155.21,155.18,87.831433]
[1748681407529,18.42525821,155.2,155.18,87.831433]
[1748681408420,18.42525821,155.21,155.18,87.831433]
[1748681409199,18.42525821,155.22,155.18,94.27542933]
[1748681409396,18.42525821,155.22,155.18,112.70068754]
[1748681409626,27.6216,155.26,155.19,18.64964886]
[1748681409941,18.42525821,155.23,155.19,106.44964886]
[1748681410344,18.42525821,155.23,155.19,112.89302996]
[1748681412331,18.42525821,155.22,155.19,112.89302996]
[1748681412906,41.6816,155.26,155.19,112.89302996]
[1748681412907,8.06245001,155.26,155.19,112.89302996]
[1748681413233,18.42525821,155.25,155.2,18.42525821]
[1748681413619,18.42525821,155.25,155.21,18.64964886]
[1748681413811,18.42525821,155.25,155.21,106.44964886]
[1748681414528,18.42525821,155.25,155.22,6.44246875]
[1748681414726,18.42525821,155.23,155.21,87.8]